bitfinex-derivatives/quotes_BTCF0:USTF0_20241120
["timestamp","ask_amount","ask_price","bid_price","bid_amount"]
[1732088734874,8.384e-05,92750.0,92746.0,0.32584854]
[1732088734875,0.05394084,92750.0,92746.0,0.256343]
[1732088735081,0.053864,92738.0,92737.0,0.25796014]
[1732088735275,0.053864,92738.0,92737.0,0.00161714]
[1732088735779,0.053864,92738.0,92737.0,0.0146731]
[1732088736873,0.053864,92738.0,92737.0,0.00161714]
[1732088743191,8.384e-05,92750.0,92749.0,0.053857]
[1732088743489,8.384e-05,92750.0,92749.0,0.414657]
[1732088743984,8.384e-05,92750.0,92749.0,0.446257]
[1732088756301,8.384e-05,92750.0,92749.0,0.70219298]
[1732088756596,8.384e-05,92750.0,92749.0,0.446257]
[1732088756797,8.384e-05,92750.0,92749.0,0.70219298]
[1732088756998,8.384e-05,92750.0,92749.0,0.446257]
[1732088757207,8.384e-05,92750.0,92749.0,0.70219298]
[1732088758398,8.384e-05,92750.0,92749.0,0.446257]
[1732088760713,8.384e-05,92750.0,92749.0,0.414657]
[1732088762309,8.384e-05,92750.0,92749.0,0.67092567]
[1732088762513,0.05394084,92750.0,92749.0,0.414657]
[1732088762703,8.384e-05,92750.0,92749.0,0.414657]
[1732088763406,0.05394084,92750.0,92749.0,0.3608]
[1732088767198,8.384e-05,92750.0,92749.0,0.3608]
[1732088767999,8.384e-05,92750.0,92749.0,0.6171604]
[1732088768204,8.384e-05,92750.0,92749.0,0.3608]
[1732088772419,8.384e-05,92750.0,92749.0,0.75026282]
[1732088772606,8.384e-05,92750.0,92749.0,0.43034284]
[1732088773104,8.384e-05,92750.0,92749.0,0.48419984]
[1732088775309,0.05394084,92750.0,92749.0,0.414657]
[1732088778514,0.05394084,92750.0,92749.0,0.73539666]
[1732088778714,0.05394084,92750.0,92749.0,0.414657]
[1732088779111,8.384e-05,92750.0,92749.0,0.414657]
[1732088779303,0.05394084,92750.0,92749.0,0.73539641]
[1732088779508,0.05394084,92750.0,92749.0,0.414657]
[1732088783202,0.05394084,92750.0,92749.0,0.3608]
[1732088783705,0.12348368,92750.0,92749.0,0.61744811]
[1732088783918,0.12348368,92750.0,92749.0,0.25664811]
[1732088784115,0.12348368,92750.0,92747.0,0.25664811]
[1732088784423,0.053858,92748.0,92747.0,0.25664811]
[1732088784624,0.053858,92748.0,92741.0,0.415542]
[1732088784625,0.06962668,92750.0,92744.0,0.05386]
[1732088784814,0.05386,92745.0,92744.0,0.05386]
[1732088785512,0.053861,92742.0,92741.0,0.36164]
[1732088785713,0.053861,92742.0,92741.0,0.68153941]
[1732088786119,0.05386,92746.0,92745.0,0.053859]
[1732088788328,8.384e-05,92750.0,92749.0,0.053857]
[1732088791518,8.384e-05,92750.0,92749.0,0.117557]
[1732088791918,8.384e-05,92750.0,92749.0,0.43829641]
[1732088792121,8.384e-05,92750.0,92749.0,0.117557]
[1732088792325,0.053848,92765.0,92764.0,0.053848]
[1732088792524,0.053845,92772.0,92771.0,0.053844]
[1732088801830,0.053845,92772.0,92771.0,0.414644]
[1732088802332,0.053845,92772.0,92771.0,0.053844]
[1732088802527,0.053845,92772.0,92771.0,0.414644]
[1732088805037,0.053841,92778.0,92777.0,0.053841]
[1732088805239,0.053841,92778.0,92777.0,0.12338384]
[1732088807333,0.02154741,92788.0,92782.0,0.053838]
[1732088807535,0.053821,92812.0,92777.0,0.13908568]
[1732088807536,0.053827,92802.0,92797.0,0.053829]
[1732088807742,0.053827,92802.0,92801.0,0.43034284]
[1732088807927,0.10133738,92802.0,92801.0,0.3608]
[1732088816845,0.04751038,92802.0,92801.0,0.3608]
[1732088817156,0.16568341,92821.0,92819.0,0.053816]
[1732088817332,0.144136,92821.0,92820.0,0.06954284]
[1732088817838,0.053816,92821.0,92820.0,0.06954284]
[1732088818428,0.10269406,92821.0,92820.0,0.06954284]
[1732088819243,0.053817,92820.0,92815.0,0.06954284]
[1732088819444,0.053818,92817.0,92815.0,0.06954284]
[1732088821641,0.04887806,92821.0,92812.0,0.3608]
[1732088821947,0.053823,92808.0,92803.0,0.053826]
[1732088822146,0.06954284,92816.0,92803.0,0.053826]
[1732088822340,0.053825,92806.0,92803.0,0.053826]
[1732088822744,0.0319,92815.0,92801.0,0.52154284]
[1732088822939,0.0319,92815.0,92801.0,0.52066284]
[1732088823447,0.0319,92815.0,92793.0,0.36241646]
[1732088823448,0.06954284,92804.0,92793.0,0.36241646]
[1732088823635,0.053831,92795.0,92793.0,0.36241646]
[1732088829145,0.053831,92795.0,92793.0,0.41624846]
[1732088829932,0.09024,92804.0,92793.0,0.36241646]
[1732088830139,0.053826,92803.0,92800.0,0.06954284]
[1732088830440,0.09024,92804.0,92800.0,0.06954284]
[1732088830640,0.053826,92803.0,92801.0,0.3608]
[1732088831243,0.04896632,92805.0,92801.0,0.3608]
[1732088831551,0.053827,92802.0,92801.0,0.3608]
[1732088832552,0.06954284,92803.0,92795.0,0.3608]
[1732088832738,0.053831,92794.0,92793.0,0.00161646]
[1732088835540,0.10262065,92794.0,92793.0,0.00161646]
[1732088836453,0.10262065,92794.0,92787.0,0.414635]
[1732088836454,0.053835,92788.0,92787.0,0.414635]
[1732088839747,0.053835,92788.0,92787.0,0.3608]
[1732088841955,0.053835,92788.0,92787.0,0.414635]
[1732088842864,0.053835,92788.0,92787.0,0.053835]
[1732088843058,0.005,92829.0,92793.0,0.053831]
[1732088843059,0.053833,92794.0,92793.0,0.053831]
[1732088843272,0.053831,92794.0,92793.0,0.06954284]
[1732088843562,0.053831,92794.0,92793.0,0.12337484]
[1732088845562,0.053831,92794.0,92793.0,0.06954284]
[1732088847859,0.04709317,92795.0,92787.0,0.3608]
[1732088848049,0.053835,92788.0,92787.0,0.3608]
[1732088849359,0.053835,92788.0,92787.0,0.61663183]
[1732088849562,0.053835,92788.0,92787.0,0.67046683]
[1732088851355,0.053835,92788.0,92787.0,0.414635]
[1732088852358,0.053835,92788.0,92787.0,0.053835]
[1732088852552,0.053835,92788.0,92787.0,0.414635]
[1732088853363,0.053835,92788.0,92787.0,0.3608]
[1732088853752,0.3608,92802.0,92787.0,0.40884642]
[1732088853954,0.053832,92794.0,92793.0,0.053831]
[1732088856759,0.053826,92803.0,92793.0,0.25610054]
[1732088857053,0.053832,92793.0,92792.0,0.25610054]
[1732088857262,0.053827,92802.0,92791.0,0.25610054]
[1732088857263,0.053832,92792.0,92791.0,0.25610054]
[1732088857567,0.053833,92791.0,92789.0,0.053834]
[1732088857872,0.053833,92791.0,92790.0,0.053834]
[1732088861070,0.053824,92806.0,92790.0,0.053834]
[1732088861071,0.09024,92811.0,92790.0,0.06954284]
[1732088861373,0.0319,92815.0,92804.0,0.06954284]
[1732088861576,0.053825,92806.0,92805.0,0.053825]
[1732088862968,0.053826,92803.0,92802.0,0.3608]
[1732088868388,0.053826,92803.0,92802.0,0.414627]
[1732088875768,0.053826,92803.0,92802.0,0.3608]
[1732088878366,0.06954284,92805.0,92802.0,0.3608]
[1732088878570,0.053826,92803.0,92802.0,0.3608]
[1732088879678,0.06954284,92805.0,92802.0,0.3608]
[1732088880089,0.053826,92803.0,92802.0,0.3608]
[1732088880280,0.06954284,92805.0,92799.0,0.25605136]
[1732088880480,0.053828,92799.0,92798.0,0.25605136]
[1732088880680,0.053831,92795.0,92794.0,0.25605136]
[1732088880880,0.053832,92792.0,92791.0,0.30988336]
[1732088881072,0.053832,92792.0,92791.0,0.053832]
[1732088881387,0.053832,92792.0,92791.0,0.30988336]
[1732088881777,0.053832,92792.0,92791.0,0.053832]
[1732088885987,0.053832,92792.0,92791.0,0.414632]
[1732088886894,0.053832,92792.0,92791.0,0.053832]
[1732088889186,0.053833,92791.0,92790.0,0.3608]
[1732088890389,0.053834,92789.0,92788.0,0.0331]
[1732088890786,0.053834,92789.0,92788.0,0.3939]
[1732088890995,0.06954284,92795.0,92787.0,0.25603093]
[1732088891188,0.053835,92788.0,92787.0,0.25603093]
[1732088891386,0.053835,92787.0,92786.0,0.25603093]
[1732088891705,0.053837,92784.0,92783.0,0.09016]
[1732088892282,0.053837,92784.0,92783.0,0.143998]
[1732088896396,0.053834,92789.0,92788.0,0.053834]
[1732088898189,0.053834,92789.0,92788.0,0.3792143]
[1732088898394,0.053834,92789.0,92788.0,0.12337684]
[1732088898688,0.063,92812.0,92788.0,0.06954284]
[1732088898895,0.063,92812.0,92786.0,0.3608]
[1732088898896,0.053832,92795.0,92794.0,0.414631]
[1732088899215,0.053832,92795.0,92794.0,0.48417384]
[1732088899392,0.053832,92795.0,92794.0,0.75303085]
[1732088899596,0.053832,92795.0,92794.0,0.75300634]
[1732088899803,0.053832,92795.0,92794.0,0.49722041]
[1732088900704,0.053832,92795.0,92794.0,0.48417384]
[1732088900891,0.053832,92795.0,92794.0,0.73997819]
[1732088901300,0.053832,92795.0,92794.0,0.73999344]
[1732088901499,0.053832,92795.0,92794.0,0.6704506]
[1732088901905,0.053832,92795.0,92794.0,0.414631]
[1732088902199,0.053832,92795.0,92794.0,0.67045874]
[1732088902792,0.053832,92795.0,92794.0,0.414631]
[1732088903400,0.053832,92795.0,92794.0,0.3608]
[1732088904800,0.053832,92795.0,92794.0,0.43034284]
[1732088905002,0.053832,92795.0,92794.0,0.44352233]
[1732088905301,0.053832,92795.0,92794.0,0.37397997]
[1732088905503,0.053832,92795.0,92794.0,0.61666649]
[1732088905709,0.053832,92795.0,92794.0,0.37457606]
[1732088905905,0.053832,92795.0,92794.0,0.3608]
[1732088906099,0.053834,92789.0,92788.0,0.25593816]
[1732088906297,0.053834,92789.0,92788.0,0.01377924]
[1732088906909,0.053835,92787.0,92786.0,0.25593816]
[1732088907106,0.06954284,92791.0,92786.0,0.25596309]
[1732088907298,0.053835,92787.0,92786.0,0.25596309]
[1732088907502,0.053835,92787.0,92784.0,0.3608]
[1732088908008,0.053836,92786.0,92784.0,0.3608]
[1732088912500,0.053836,92786.0,92785.0,0.25598023]
[1732088912702,0.053836,92786.0,92785.0,0.26989725]
[1732088915021,0.06954284,92791.0,92785.0,0.26989725]
[1732088915210,0.053835,92789.0,92788.0,0.053834]
[1732088915519,0.053835,92787.0,92786.0,0.01391702]
[1732088918817,0.053835,92787.0,92785.0,0.25598023]
[1732088920708,0.053835,92787.0,92786.0,0.25598023]
[1732088921110,0.06954284,92791.0,92786.0,0.25593504]
[1732088921409,0.053835,92787.0,92786.0,0.25593504]
[1732088922218,0.06954284,92791.0,92785.0,0.25593504]
[1732088922420,0.06954284,92791.0,92784.0,0.053837]
[1732088922719,0.053836,92786.0,92785.0,0.25592281]
[1732088922914,0.053836,92786.0,92784.0,0.053837]
[1732088924110,0.032,92794.0,92784.0,0.053837]
[1732088924315,0.053835,92787.0,92786.0,0.25591249]
[1732088924511,0.053836,92786.0,92785.0,0.25591249]
[1732088924823,0.053836,92786.0,92785.0,0.3236508]
[1732088925017,0.053836,92786.0,92785.0,0.06773831]
[1732088925216,0.053836,92786.0,92785.0,0.053836]
[1732088925818,0.053836,92786.0,92785.0,0.06775395]
[1732088926022,0.053836,92786.0,92785.0,0.053836]
[1732088926409,0.0662,92805.0,92784.0,0.06954284]
[1732088926606,0.06954284,92801.0,92790.0,0.06954284]
[1732088926809,0.06954284,92796.0,92789.0,0.3608]
[1732088927021,0.053834,92790.0,92789.0,0.053834]
[1732088928212,0.053834,92790.0,92789.0,0.30971923]
[1732088928416,0.053834,92790.0,92789.0,0.053834]
[1732088929111,0.053834,92790.0,92789.0,0.30971923]
[1732088929923,0.053834,92790.0,92789.0,0.053834]
[1732088930111,0.053834,92790.0,92789.0,0.30971923]
[1732088930714,0.053834,92790.0,92789.0,0.06777664]
[1732088931015,0.053834,92790.0,92789.0,0.32366187]
[1732088931216,0.053834,92790.0,92789.0,0.06777664]
[1732088931619,0.053834,92790.0,92789.0,0.053834]
[1732088936012,0.053834,92790.0,92789.0,0.06775077]
[1732088936222,0.053834,92790.0,92789.0,0.053834]
[1732088936527,0.053834,92790.0,92789.0,0.067747]
[1732088936828,0.053834,92790.0,92789.0,0.053834]
[1732088937731,0.053834,92790.0,92789.0,0.06774416]
[1732088941128,0.414634,92790.0,92788.0,0.25615332]
[1732088941327,0.053835,92788.0,92787.0,0.25615332]
[1732088941527,0.053837,92784.0,92783.0,0.30999032]
[1732088941828,0.053837,92784.0,92783.0,0.053837]
[1732088947333,0.053837,92784.0,92783.0,0.25609024]
[1732088948235,0.0311,92787.0,92782.0,0.25609024]
[1732088948433,0.053838,92783.0,92782.0,0.25609024]
[1732088948631,0.05384,92779.0,92778.0,0.00013486]
[1732088948932,0.05384,92779.0,92778.0,0.01422633]
[1732088949920,0.05384,92779.0,92778.0,0.00013486]
[1732088950120,0.05384,92779.0,92778.0,0.01422863]
[1732088950430,0.05384,92779.0,92778.0,0.25616805]
[1732088950631,0.05384,92779.0,92778.0,0.01428064]
[1732088950833,0.05384,92779.0,92778.0,0.27031383]
[1732088951034,0.05384,92779.0,92778.0,0.01428064]
[1732088951625,0.05384,92779.0,92778.0,0.00013486]
[1732088952230,0.05384,92779.0,92778.0,0.01425424]
[1732088952425,0.05384,92779.0,92778.0,0.20621787]
[1732088952426,0.48418284,92779.0,92778.0,0.20621787]
[1732088952734,0.48418284,92779.0,92778.0,0.00013486]
[1732088952937,0.41464,92779.0,92778.0,0.00013486]
[1732088956831,0.48418284,92779.0,92778.0,0.00013486]
[1732088960448,0.12338284,92779.0,92778.0,0.00013486]
[1732088960635,0.48418284,92779.0,92778.0,0.00013486]
[1732088963446,0.12338284,92779.0,92778.0,0.00013486]
[1732088963648,0.48418284,92779.0,92778.0,0.00013486]
[1732088969046,0.41464,92779.0,92778.0,0.00013486]
[1732088969347,0.48418284,92779.0,92778.0,0.00013486]
[1732088976548,0.58066284,92779.0,92778.0,0.00013486]
[1732088976855,0.65020568,92779.0,92778.0,0.00013486]
[1732088977947,0.58066284,92779.0,92778.0,0.00013486]
[1732088978345,0.65020568,92779.0,92778.0,0.00013486]
[1732088978750,0.58066284,92779.0,92778.0,0.00013486]
[1732088983962,0.053844,92772.0,92771.0,0.19182878]
[1732088984258,0.053844,92772.0,92755.0,0.32058973]
[1732088984259,0.053852,92757.0,92756.0,0.25601222]
[1732088984453,0.053852,92757.0,92753.0,0.0016169]
[1732088984454,0.053854,92754.0,92753.0,0.0016169]
[1732088985050,0.05397781,92754.0,92753.0,0.0016169]
[1732088985959,0.12352065,92754.0,92753.0,0.0016169]
[1732089002575,0.12352065,92754.0,92753.0,0.0554709]
[1732089002970,0.00012381,92754.0,92753.0,0.0554709]
[1732089003474,0.00012381,92754.0,92753.0,0.31148312]
[1732089003681,0.05385,92761.0,92753.0,0.31148312]
[1732089003877,0.053848,92766.0,92765.0,0.053846]
[1732089004077,0.06954284,92771.0,92765.0,0.053846]
[1732089004078,0.053845,92771.0,92770.0,0.053844]
[1732089004269,0.053845,92771.0,92770.0,0.414644]
[1732089004575,0.053845,92771.0,92770.0,0.42910108]
[1732089006582,0.053845,92771.0,92770.0,0.49864392]
[1732089006794,0.06954284,92777.0,92770.0,0.44479992]
[1732089006983,0.06954284,92777.0,92771.0,0.04635708]
[1732089007169,0.053842,92776.0,92775.0,0.053842]
[1732089008577,0.06954284,92777.0,92771.0,0.0319]
[1732089008578,0.053843,92772.0,92771.0,0.0319]
[1732089008879,0.12338584,92772.0,92771.0,0.085744]
[1732089009087,0.12338584,92772.0,92771.0,0.446544]
[1732089009375,0.06954284,92772.0,92771.0,0.446544]
[1732089010483,0.06954284,92772.0,92771.0,0.46095401]
[1732089011168,0.053841,92776.0,92775.0,0.053842]
[1732089016881,0.053841,92776.0,92775.0,0.414642]
[1732089019779,0.053841,92776.0,92775.0,0.3608]
[1732089020484,0.053841,92776.0,92775.0,0.414642]
[1732089023780,0.053841,92776.0,92775.0,0.3608]
[1732089031004,0.12338384,92776.0,92775.0,0.3608]
[1732089034185,0.12338384,92776.0,92775.0,0.61681222]
[1732089034603,0.12338384,92776.0,92775.0,0.3608]
[1732089035194,0.12338384,92776.0,92775.0,0.63121782]
[1732089036087,0.12338384,92776.0,92775.0,0.27041782]
[1732089036288,0.12338384,92776.0,92775.0,0.25601222]
[1732089036487,0.12338384,92776.0,92775.0,0.30985422]
[1732089037396,0.12338384,92776.0,92775.0,0.32424814]
[1732089039792,0.053841,92776.0,92775.0,0.32424814]
[1732089039994,0.053839,92781.0,92780.0,0.053839]
[1732089048194,0.053839,92781.0,92780.0,0.06821164]
[1732089049207,0.053835,92788.0,92787.0,0.053833]
[1732089049510,0.053835,92788.0,92787.0,0.414633]
[1732089050405,0.06954284,92794.0,92787.0,0.3608]
[1732089050710,0.053832,92793.0,92792.0,0.053832]
[1732089052515,0.06954284,92796.0,92787.0,0.43034284]
[1732089052828,0.06954284,92796.0,92795.0,0.05383]
[1732089053210,0.12337284,92796.0,92795.0,0.05383]
[1732089056226,0.0304,92800.0,92792.0,0.06954284]
[1732089056423,0.053829,92798.0,92797.0,0.053829]
[1732089056618,0.0304,92800.0,92792.0,0.06954284]
[1732089056817,0.0304,92800.0,92799.0,0.053828]
[1732089057024,0.084228,92800.0,92799.0,0.053828]
[1732089062023,0.0304,92800.0,92799.0,0.053828]
[1732089062218,0.09348,92804.0,92803.0,0.053826]
[1732089062420,0.147305,92804.0,92803.0,0.053826]
[1732089062630,0.053825,92804.0,92803.0,0.053826]
[1732089063236,0.053825,92804.0,92799.0,0.06954284]
[1732089063237,0.44552301,92809.0,92808.0,0.053823]
[1732089063434,0.10283246,92809.0,92808.0,0.053823]
[1732089064531,0.053823,92809.0,92808.0,0.053823]
[1732089067642,0.053823,92809.0,92808.0,0.414623]
[1732089068242,0.053823,92809.0,92798.0,0.04741326]
[1732089068446,0.053828,92800.0,92799.0,0.0681139]
[1732089068848,0.053828,92800.0,92799.0,0.053828]
[1732089069146,0.053828,92800.0,92799.0,0.06814965]
[1732089076847,0.053828,92800.0,92799.0,0.06814565]
[1732089079651,0.053819,92806.0,92805.0,0.053819]
[1732089079952,0.053819,92806.0,92805.0,0.42894065]
[1732089080340,0.053819,92806.0,92805.0,0.414619]
[1732089084451,0.053819,92806.0,92805.0,0.42917682]
[1732089085242,0.053819,92806.0,92805.0,0.414619]
[1732089085446,0.053819,92806.0,92805.0,0.42917771]
[1732089086651,0.053819,92806.0,92805.0,0.414619]
[1732089089552,0.053819,92806.0,92805.0,0.42919696]
[1732089089755,0.04851899,92811.0,92805.0,0.4449208]
[1732089089961,0.053816,92811.0,92810.0,0.053816]
[1732089090153,0.06954284,92812.0,92805.0,0.43034284]
[1732089090154,0.053819,92806.0,92805.0,0.43034284]
[1732089090358,0.053819,92806.0,92805.0,0.414619]
[1732089091055,0.053819,92806.0,92805.0,0.42921228]
[1732089091258,0.053819,92806.0,92805.0,0.37539328]
[1732089091454,0.053819,92806.0,92805.0,0.42921228]
[1732089091653,0.053819,92806.0,92805.0,0.414619]
[1732089091959,0.053819,92806.0,92805.0,0.67100473]
[1732089092347,0.053819,92806.0,92805.0,0.414619]
[1732089093054,0.053819,92806.0,92805.0,0.6705689]
[1732089093257,0.053819,92806.0,92805.0,0.414619]
[1732089094863,0.053819,92806.0,92805.0,0.67063321]
[1732089095163,0.053819,92806.0,92805.0,0.414619]
[1732089095749,0.053819,92806.0,92805.0,0.3608]
[1732089095955,0.12336184,92806.0,92805.0,0.3608]
[1732089096148,0.12336184,92806.0,92805.0,0.61684589]
[1732089096362,0.12336184,92806.0,92805.0,0.3608]
[1732089096562,0.12336184,92806.0,92805.0,0.61684589]
[1732089096753,0.12336184,92806.0,92805.0,0.3608]
[1732089106860,0.12336184,92806.0,92805.0,0.61697718]
[1732089107062,0.12336184,92806.0,92805.0,0.3608]
[1732089107456,0.12336184,92806.0,92805.0,0.7216]
[1732089107758,0.053818,92807.0,92806.0,0.053819]
[1732089107956,0.053818,92807.0,92806.0,0.06838961]
[1732089110865,0.053818,92807.0,92806.0,0.32449467]
[1732089111570,0.053818,92807.0,92806.0,0.06838961]
[1732089114571,0.053818,92807.0,92806.0,0.32448363]
[1732089116074,0.053818,92807.0,92806.0,0.06838961]
[1732089116274,0.053818,92807.0,92806.0,0.3244736]
[1732089116471,0.053818,92807.0,92806.0,0.06838961]
[1732089117365,0.053818,92807.0,92806.0,0.053819]
[1732089117569,0.053819,92806.0,92805.0,0.00084]
[1732089117775,0.053821,92803.0,92792.0,0.32048216]
[1732089117959,0.053828,92790.0,92789.0,0.00161648]
[1732089120463,0.10324571,92790.0,92789.0,0.00161648]
[1732089120869,0.10324571,92790.0,92789.0,0.36241648]
[1732089121779,0.053828,92790.0,92789.0,0.69253333]
[1732089122084,0.24760896,92820.0,92789.0,1.06759509]
[1732089122085,0.06954284,92817.0,92789.0,1.06759509]
[1732089122269,0.06954284,92817.0,92811.0,0.3608]
[1732089122574,0.12335784,92812.0,92811.0,0.3608]
[1732089124677,0.053815,92812.0,92811.0,0.3608]
[1732089124977,0.12335784,92812.0,92811.0,0.3608]
[1732089128579,0.12335784,92812.0,92809.0,0.1917462]
[1732089128580,0.06954284,92812.0,92809.0,0.1917462]
[1732089128764,0.35574,92811.0,92799.0,0.5525462]
[1732089128966,0.12336484,92800.0,92799.0,0.3608]
[1732089129269,0.053822,92800.0,92799.0,0.4292643]
[1732089129577,0.053822,92800.0,92799.0,0.3754413]
[1732089130369,0.053822,92800.0,92799.0,0.4292643]
[1732089130572,0.09024,92812.0,92799.0,0.44498414]
[1732089130776,0.09024,92812.0,92807.0,0.3608]
[1732089131568,0.053818,92808.0,92807.0,0.3608]
[1732089131774,0.12336084,92808.0,92807.0,0.3608]
[1732089133680,0.053818,92808.0,92807.0,0.3608]
[1732089135486,0.04803883,92817.0,92807.0,0.3608]
[1732089135671,0.053812,92817.0,92816.0,0.3608]
[1732089137086,0.12335484,92817.0,92816.0,0.3608]
[1732089137585,0.12335484,92817.0,92816.0,0.55259864]
[1732089137882,0.12335484,92817.0,92816.0,0.3608]
[1732089138076,0.12335484,92817.0,92816.0,0.37524498]
[1732089138276,0.12335484,92817.0,92816.0,0.3608]
[1732089141386,0.12335484,92817.0,92807.0,0.3608]
[1732089141387,0.053818,92808.0,92807.0,0.3608]
[1732089141583,0.053818,92808.0,92807.0,0.37532048]
[1732089141777,0.053818,92808.0,92807.0,0.3608]
[1732089143292,0.053818,92807.0,92800.0,0.3608]
[1732089143592,0.12336384,92802.0,92801.0,0.01456322]
[1732089144281,0.12336384,92802.0,92800.0,0.3608]
[1732089144282,0.06954284,92802.0,92800.0,0.3608]
[1732089144481,0.053822,92801.0,92800.0,0.3608]
[1732089153996,0.02154196,92813.0,92800.0,0.3608]
[1732089153997,0.053816,92810.0,92809.0,0.053817]
[1732089154294,0.053816,92810.0,92809.0,0.414617]
[1732089157600,0.053816,92810.0,92809.0,0.42920919]
[1732089157989,0.053816,92810.0,92809.0,0.37539219]
[1732089158193,0.053816,92810.0,92809.0,0.01459219]
[1732089158392,0.053821,92802.0,92801.0,0.084621]
[1732089158588,0.12336384,92802.0,92801.0,0.04537953]
[1732089159193,0.12336384,92802.0,92801.0,0.01457953]
[1732089159893,0.12336384,92802.0,92800.0,0.414622]
[1732089160402,0.053821,92802.0,92801.0,0.053822]
[1732089161301,0.053821,92802.0,92801.0,0.06843524]
[1732089161800,0.053821,92802.0,92801.0,0.01460123]
[1732089166610,0.053821,92802.0,92801.0,0.06842323]
[1732089170709,0.053821,92802.0,92801.0,0.06844315]
[1732089172399,0.053821,92802.0,92801.0,0.053822]
[1732089176918,0.053821,92802.0,92801.0,0.06850695]
[1732089177115,0.053818,92809.0,92808.0,0.053817]
[1732089177303,0.053818,92809.0,92808.0,0.06850195]
[1732089179217,0.053818,92809.0,92808.0,0.42930195]
[1732089179422,0.053818,92809.0,92808.0,0.414617]
[1732089180616,0.053818,92809.0,92808.0,0.42930673]
[1732089184422,0.053818,92809.0,92808.0,0.37548973]
[1732089185619,0.053818,92809.0,92808.0,0.3608]
[1732089186624,0.06954284,92814.0,92807.0,0.25648337]
[1732089186826,0.053817,92809.0,92808.0,0.3608]
[1732089187209,0.053817,92809.0,92808.0,0.61728337]
[1732089187525,0.053817,92809.0,92808.0,0.43034284]
[1732089187824,0.053817,92809.0,92808.0,0.44501353]
[1732089188013,0.053817,92809.0,92808.0,0.44501382]
[1732089188325,0.053817,92809.0,92808.0,0.43034284]
[1732089188621,0.053817,92809.0,92808.0,0.44501299]
[1732089189824,0.053817,92809.0,92808.0,0.49883099]
[1732089190827,0.04845482,92816.0,92810.0,0.053816]
[1732089191030,0.053809,92823.0,92811.0,0.27101283]
[1732089191222,0.05381,92821.0,92820.0,0.3608]
[1732089194116,0.20419372,92824.0,92820.0,0.3608]
[1732089194316,0.053809,92823.0,92820.0,0.3608]
[1732089197932,0.20419372,92824.0,92822.0,0.05381]
[1732089198119,0.25800272,92824.0,92822.0,0.05381]
[1732089198519,0.23646452,92824.0,92822.0,0.05381]
[1732089198727,0.18265552,92824.0,92822.0,0.05381]
[1732089199022,0.11311268,92824.0,92823.0,0.12335184]
[1732089199220,0.04741268,92824.0,92823.0,0.12335184]
[1732089199424,0.19775,92828.0,92823.0,0.06954284]
[1732089199626,0.19775,92828.0,92827.0,0.053807]
[1732089200743,0.19775,92828.0,92827.0,0.13790084]
[1732089202223,0.053796,92846.0,92836.0,0.053801]
[1732089202432,0.0607,92852.0,92849.0,0.053794]
[1732089202631,0.09008,92851.0,92849.0,0.053794]
[1732089203332,0.053793,92850.0,92849.0,0.053794]
[1732089204228,0.19996619,92852.0,92845.0,0.3608]
[1732089204428,0.06954284,92847.0,92846.0,0.06824196]
[1732089205439,0.06954284,92847.0,92846.0,0.053795]
[1732089206931,0.12333784,92847.0,92846.0,0.053795]
[1732089209129,0.06954284,92847.0,92846.0,0.053795]
[1732089210740,0.053795,92848.0,92846.0,0.053795]
[1732089210931,0.06954284,92847.0,92846.0,0.053795]
[1732089215137,0.06954284,92847.0,92846.0,0.414595]
[1732089215539,0.04918619,92852.0,92846.0,0.3608]
[1732089215844,0.053781,92872.0,92846.0,0.414596]
[1732089215845,0.06954284,92847.0,92846.0,0.414596]
[1732089216335,0.06954284,92851.0,92850.0,0.053793]
[1732089218637,0.04797307,92862.0,92849.0,0.06954284]
[1732089218837,0.08996,92864.0,92861.0,0.7216]
[1732089219039,0.053786,92862.0,92861.0,0.7216]
[1732089219642,0.12332884,92862.0,92861.0,0.7216]
[1732089220546,0.06954284,92862.0,92861.0,0.775387]
[1732089226842,0.08996,92865.0,92861.0,0.7216]
[1732089227047,0.08996,92865.0,92864.0,0.053785]
[1732089228246,0.11822912,92867.0,92866.0,0.053784]
[1732089228439,0.0094,92870.0,92869.0,0.053782]
[1732089228743,0.0094,92870.0,92869.0,0.414582]
[1732089234833,0.0094,92870.0,92869.0,0.09173005]
[1732089235033,0.05379,92856.0,92855.0,0.25574484]
[1732089235240,0.05379,92856.0,92846.0,0.25574484]
[1732089235241,0.053795,92847.0,92846.0,0.25574484]
[1732089235544,0.12333784,92847.0,92846.0,0.0142553]
[1732089235946,0.06954284,92847.0,92835.0,0.053802]
[1732089236443,0.06954284,92847.0,92836.0,0.01429582]
[1732089236650,0.3608,92850.0,92837.0,0.01429582]
[1732089236651,0.053799,92840.0,92837.0,0.01429582]
[1732089236844,0.053799,92840.0,92838.0,0.01429582]
[1732089237043,0.053799,92840.0,92839.0,0.01429582]
[1732089238839,0.51257592,92850.0,92835.0,0.30954684]
[1732089239349,0.053801,92837.0,92836.0,0.01427784]
[1732089239549,0.053803,92834.0,92833.0,0.25574484]
[1732089239848,0.053803,92833.0,92832.0,0.053804]
[1732089240250,0.10391685,92843.0,92829.0,0.053805]
[1732089240454,0.3608,92841.0,92828.0,0.28664484]
[1732089240750,0.3608,92841.0,92828.0,0.0309]
[1732089241341,0.3608,92841.0,92829.0,0.053805]
[1732089241545,0.053803,92833.0,92829.0,0.053805]
[1732089242041,0.46471685,92841.0,92829.0,0.053805]
[1732089242240,0.053804,92832.0,92828.0,0.0309]
[1732089242452,0.053804,92832.0,92830.0,0.053804]
[1732089250676,0.04794156,92840.0,92828.0,0.0309]
[1732089250858,0.053802,92835.0,92834.0,0.053803]
[1732089255250,0.053799,92840.0,92838.0,0.0538]
[1732089255450,0.0538,92839.0,92838.0,0.4146]
[1732089256546,0.0538,92839.0,92838.0,0.3608]
[1732089256853,0.0538,92839.0,92829.0,0.09484]
[1732089256854,0.053805,92830.0,92829.0,0.005]
[1732089257161,0.053805,92830.0,92828.0,1.83474452]
[1732089257364,0.053805,92830.0,92829.0,0.25574484]
[1732089257550,0.053805,92830.0,92828.0,0.07899968]
[1732089257861,0.053805,92830.0,92829.0,0.053805]
[1732089258551,0.053805,92830.0,92829.0,0.414605]
[1732089258747,0.053805,92830.0,92829.0,0.48402117]